Cogmind - Beta 16.1 @@@ ROGUE MODE // 2026.03.19 @ 20:17:50 Player: Balonith Result: Destroyed by as-90633 with Assembled Blade Performance ------------- Evolutions (0) 0 Regions Visited (2) 400 Robots Destroyed (8) 40 Value Destroyed (205) 205 Prototype IDs (0) 0 Alien Tech Used (0) 0 Bonus (0) 0 TOTAL SCORE: 645 Bonus ------- None Cogmind --------- Core Integrity 0/250 Matter 264/300 Energy 98/100 System Corruption 4% Temperature Cool (0) Movement Core (100) Ox1 Location -10/Mines Parts ------- > --- POWER (1) -------- (None) > --- PROPULSION (2) --- (None) > --- UTILITY (2) ------ Structural Scanner > --- WEAPON (2) ------- Light Assault Rifle Rocket Launcher > --- INVENTORY (5) ---- Aluminum Leg Small Storage Unit Peak State ------------ > --- POWER ------------ Ion Engine > --- PROPULSION ------- Aluminum Leg Aluminum Leg > --- UTILITY ---------- Small Storage Unit Structural Scanner > --- WEAPON ----------- Assault Rifle Assault Rifle > --- INVENTORY -------- Light Ion Engine [Rating: 7] Favorites ----------- Power Ion Engine Engine Ion Engine Propulsion Aluminum Leg Leg Aluminum Leg Utility Structural Scanner Device Structural Scanner Storage Small Storage Unit Processor Signal Interpreter Weapon Assault Rifle Ballistic Gun Assault Rifle Launcher Rocket Launcher Build | -11 -10 -10 ------- Run | Yrd Mat Min Slots Evolved . | . . . Power . | . . . Propulsion . | . . . Utility . | . . . Weapon . | . . . Parts Attached 14 | 6 2 6 Power 2 | 1 . 1 Engine 2 | 1 . 1 Core . | . . . Reactor . | . . . Propulsion 5 | 2 . 3 Treads . | . . . Leg 5 | 2 . 3 Wheel . | . . . Hover . | . . . Flight . | . . . Utility 3 | 1 2 . Device 1 | . 1 . Storage 1 | 1 . . Processor 1 | . 1 . Hackware . | . . . Protection . | . . . Artifact . | . . . Weapon 4 | 2 . 2 Energy Gun . | . . . Energy Cannon . | . . . Ballistic Gun 3 | 2 . 1 Ballistic Cannon . | . . . Launcher 1 | . . 1 Special Weapon . | . . . Impact Weapon . | . . . Slashing Weapon . | . . . Piercing Weapon . | . . . Special Melee Weapon . | . . . Unidentified Prototypes . | . . . Parts Lost 8 | . . 8 Power 2 | . . 2 Propulsion 3 | . . 3 Utility 1 | . . 1 Weapon 2 | . . 2 Highest Loss Streak 5 | . . 5 To Critical Strikes . | . . . Average Backups 2 | . 2 3 Power . | . 1 . Propulsion . | . . . Utility . | . . 1 Weapon . | . . 1 Tool/Special . | . . . Unused Backups 1 | . . 1 Power . | . . . Propulsion . | . . . Utility 1 | . . 1 Weapon . | . . . Tool/Special . | . . . Average Slot Usage (%) 91 | . 95 89 Engine 12 | . 14 11 Leg 25 | . 28 23 Device 12 | . 10 14 Storage 1 | . 3 . Processor 12 | . 10 14 Ballistic Gun 25 | . 26 25 Peak Build Rating 7 | 6 7 7 Average Rating 6 | 4 6 6 On Entrance 4 | . 6 7 Avg Prop Armor Cover (%) . | . . . Naked Turns . | . . . Heaviest Build 14 | 14 14 10 Greatest Support 20 | 20 20 20 Greatest Overweight (x) . | . . . Average Overweight (x) . | . . . Largest Inventory Capacity 8 | 8 8 5 Average Capacity 5 | 6 5 5 Most Carried 5 | 2 3 5 Average Carried 2 | . 2 3 Final Capacity 8 | 8 5 5 Final Carried 3 | 1 3 2 Class Distribution -------------------- 100% | Mutant Dominant Class ---------------- Mutant | -10/Materials Mutant | -10/Mines Resources | -11 -10 -10 ----------- Run | Yrd Mat Min Matter Collected 519 | 234 94 191 Remotely . | . . . Salvage Created 285 | . 120 165 Parts 16 | . 7 9 Haulers Intercepted . | . . . Recyclers Shooed 1 | . . 1 Parts Field Recycled . | . . . Retrieved Matter . | . . . Parts Self-Destructed . | . . . Prevented . | . . . Parts Restored . | . . . Kills | -11 -10 -10 ------- Run | Yrd Mat Min Combat Hostiles Destroyed 11 | . 2 9 Guns 10 | . 2 8 AOE 1 | . . 1 Classes Destroyed 4 | . 2 2 Mechanic 1 | . 1 . Swarmer 3 | . . 3 Grunt 4 | . 2 2 Assembled 4 | . . 4 Best Kill Streak 4 | . 3 4 Combat Bots Only 4 | . 2 4 Max Kills in Single Turn 1 | . 1 1 Gunslinging . | . . . Exploded 1 | . . 1 Melee . | . . . Uniques/NPCs Destroyed . | . . . Combat | -11 -10 -10 -------- Run | Yrd Mat Min Hostile Shots Fired 112 | . 19 93 Missed 34 | . 6 28 Hits 78 | . 13 65 Melee 9 | . . 9 Projectile 69 | . 13 56 Critical Strikes 1 | . 1 . Part Disruptions 2 | . . 2 Damage Taken 1126 | . 191 935 Core 278 | . 13 265 Absorbed by Shields . | . . . Regen/Repaired (Parts) 71 | . 71 . Core Remaining (%) 100 | 100 . . Volleys Fired 54 | . 13 41 Largest 2 | . 2 2 Hottest 53 | . 40 53 Shots Fired 94 | . 26 68 Gun 92 | . 26 66 Cannon . | . . . Launcher 2 | . . 2 Special . | . . . Kinetic 92 | . 26 66 Thermal . | . . . Explosive 2 | . . 2 Electromagnetic . | . . . Robot Hit Streak 5 | . 5 5 Robot Miss Streak 6 | . 5 6 Penetration Max . | . . . Secondary Targets 3 | . . 3 Max Gunslinging Chain 1 | . . 1 Shots Hit Robots 44 | . 14 30 Core Hits 34 | 1 9 24 Critical Kills 1 | . . 1 Critical Parts Destroyed . | . . . Critical Strikes 1 | . . 1 Destroy 1 | . . 1 Melee Attacks . | . . . Impact . | . . . Slashing . | . . . Piercing . | . . . Sneak Attacks . | . . . Combat Hostiles . | . . . Follow-up Attacks . | . . . Damage Inflicted 685 | 5 208 472 Guns 603 | . 205 398 Cannons . | . . . Explosions 68 | . . 68 Melee . | . . . Ramming 14 | 5 3 6 Kinetic 603 | . 205 398 Thermal . | . . . Explosive 68 | . . 68 Electromagnetic . | . . . Impact . | . . . Slashing . | . . . Piercing . | . . . Highest Corruption 4 | . . 4 Average Corruption 4 | . . 4 Corruption Purged . | . . . Corruption Blocked . | . . . Effects 1 | . . 1 Matter Fused 1 | . . 1 Overload Shots . | . . . Overflow Damage . | . . . Projectiles . | . . . Explosions . | . . . Melee . | . . . Knockbacks . | . . . Impact . | . . . Kinetic . | . . . Secondary . | . . . Self-Inflicted Damage . | . . . Shots . | . . . Rammed . | . . . Targets Rammed 9 | 1 2 6 Kicked 9 | 1 2 6 Crushed . | . . . Highest Temperature 20 | . 20 15 Average Temperature 4 | . 5 4 Received Heat Transfer 441 | . 129 312 Siege Activations . | . . . Martial Activations . | . . . Shielding Activations . | . . . Robots Disrupted . | . . . Combat Hostiles . | . . . Robots Corrupted . | . . . Combat Hostiles . | . . . Parts Fried . | . . . Impact Corruptions . | . . . Robots Melted . | . . . Combat Hostiles . | . . . Parts Melted . | . . . Heat Transferred . | . . . Parts Sabotaged . | . . . Parts Stolen . | . . . Parts Stripped . | . . . Power Chain Reactions . | . . . Alert | -11 -10 -10 ------- Run | Yrd Mat Min Maximum Alert Level . | . . . Low Security (%) 100 | 100 100 100 Level 1 . | . . . Level 2 . | . . . Level 3 . | . . . Level 4 . | . . . Level 5 . | . . . High Security . | . . . Max Security . | . . . Peak Influence 95 | . 45 95 Initial 5 | . . 5 Average 20 | . 10 35 Influence Increases 226 | . 74 152 Destroy 0b10 Robot/C 140 | . 40 100 Destroy 0b10 Robot/NC 5 | . 5 . Destroy Leader 30 | . 10 20 Successful Hack 7 | . 3 4 Destroy Structure 14 | . 1 13 Partial Spotted 15 | . 15 . Lose Combat Pursuer 15 | . . 15 Influence Decreases 213 | . 59 154 Entered New Map 10 | . . 10 Time Decay 153 | . 59 94 Lost Part 50 | . . 50 Squads Dispatched 2 | . 2 . Investigation . | . . . Extermination . | . . . Reinforcement 2 | . 2 . Assault . | . . . Garrison . | . . . Intercept . | . . . Searches Triggered . | . . . Construction Impeded . | . . . Haulers Reinforced . | . . . Active Scanning Responses . | . . . Cargo Convoy Interrupts . | . . . Stealth | -11 -10 -10 --------- Run | Yrd Mat Min Distress Signals . | . . . Communications Jammed . | . . . Distress Signals . | . . . Times Spotted 34 | . 10 24 Peak Tracking Total 7 | . 4 7 Tactical Retreats 4 | . . 4 Traps | -11 -10 -10 ------- Run | Yrd Mat Min Traps Triggered . | . . . Indirectly . | . . . Trap Hack Attempts . | . . . Triggered . | . . . Disarmed . | . . . Reprogrammed . | . . . Reused . | . . . Traps Extracted . | . . . Installed . | . . . Triggered . | . . . Machines | -11 -10 -10 ---------- Run | Yrd Mat Min Machines Disabled . | . . . Max in Single Turn . | . . . Machines Repaired . | . . . Machines Dismantled . | . . . Machines Sabotaged . | . . . Overloaded Fab Kills . | . . . Hacking | -11 -10 -10 --------- Run | Yrd Mat Min Machines Accessed 3 | . 2 1 Terminals 2 | . 1 1 Fabricators . | . . . Repair Stations 1 | . 1 . Recycling Units . | . . . Scanalyzers . | . . . Garrison Access . | . . . Total Hacks 5 | . 3 2 Successful 4 | . 3 1 Failed 1 | . . 1 Catastrophic 1 | . . 1 Database Lockouts . | . . . Manual 1 | . . 1 Terminals 3 | . 1 2 Fabricators . | . . . Repair Stations 2 | . 2 . Recycling Units . | . . . Scanalyzers . | . . . Garrison Access . | . . . Terminal Hacks 2 | . 1 1 Record 1 | . 1 . Dispatch Records 1 | . . 1 Fabricator Hacks . | . . . Repair Station Hacks 2 | . 2 . Scan Component 1 | . 1 . Repair 1 | . 1 . Recycling Unit Hacks . | . . . Scanalyzer . | . . . Garrison Access Hacks . | . . . Unauthorized Hacks . | . . . Terminals . | . . . Fabricators . | . . . Repair Stations . | . . . Recycling Units . | . . . Scanalyzers . | . . . Garrison Access . | . . . Data Cores Recovered . | . . . Used . | . . . Hacking Detections 1 | . . 1 Full Trace Events . | . . . Feedback Events . | . . . Feedback Blocked . | . . . Robot Schematics Acquired . | . . . Robots Built . | . . . Authchips . | . . . Time . | . . . Total Robot Build Rating . | . . . Part Schematics Acquired . | . . . Parts Built . | . . . Authchips . | . . . Time . | . . . Total Part Build Rating . | . . . Part Studies Acquired . | . . . Parts Repaired 1 | . 1 . Time 26 | . 26 . Parts Recycled . | . . . Recycled Matter . | . . . Retrieved Matter . | . . . Retrieved Components . | . . . Parts Scanalyzed . | . . . Part Schematics Acquired . | . . . Parts Damaged . | . . . Bothacking | -11 -10 -10 ------------ Run | Yrd Mat Min Used RIF Installer . | . . . Robots Hacked . | . . . Non-combat . | . . . Combat . | . . . Robot Hacks Applied . | . . . Relay Couplers Released . | . . . Fabnet Peak Effective % . | . . . Robots Rewired . | . . . Allies Hacked . | . . . Hacks Repelled . | . . . Allies | -11 -10 -10 -------- Run | Yrd Mat Min Total Allies . | . . . Largest Group . | . . . Highest-Rated Group . | . . . Highest-Rated Ally . | . . . Total Orders . | . . . Ally Attacks . | . . . Total Damage . | . . . Kills . | . . . Allies Corrupted . | . . . Allies Melted . | . . . Intel | -11 -10 -10 ------- Run | Yrd Mat Min Active Infowar (turns) 439 | . 166 273 Structural 439 | . 166 273 Robot Analysis Total . | . . . Derelict Logs Recovered . | . . . Drone Launches . | . . . Drone Recoveries . | . . . Exploration | -11 -10 -10 ------------- Run | Yrd Mat Min Turns Passed 592 | 109 210 273 Spaces Moved 287 | 62 112 113 Core 4 | 4 . . Treads . | . . . Legs 283 | 58 112 113 Wheels . | . . . Hover . | . . . Flight . | . . . Fastest Speed 50 | 50 120 120 Average Speed 119 | 115 120 120 Slowest Speed 120 | 120 120 120 Overloaded Moves . | . . . Propulsion Burnouts . | . . . Robots Hopped . | . . . Potential Cave-ins . | . . . Cave-ins Triggered . | . . . Exploration Rate (%) 19 | 4 22 31 Regions Visited 2 Branch Regions 1 Pre-discovered Areas . | . . . Known Exits Taken 1 | . 1 . Unknown Exits Taken 1 | 1 . . Scrap Searched . | . . . Spaces Dug . | . . . Terrain Destroyed 23 | . . 23 Melee . | . . . Projectile . | . . . AOE 23 | . . 23 Terrain Rammed . | . . . Walls Destroyed . | . . . Machines Disabled . | . . . Actions | -11 -10 -10 --------- Run | Yrd Mat Min Total 445 | 99 161 185 Wait 58 | 23 26 9 Move 285 | 61 111 113 Hop . | . . . Pick Up 16 | 7 3 6 Fast Attach 3 | 1 1 1 Attach 11 | 5 3 3 Detach 2 | . 2 . Swap 2 | . . 2 Drop 5 | 1 . 4 Fire 54 | . 13 41 Melee . | . . . Ram . | . . . Kick 9 | 1 2 6 Crush . | . . . Escape Stasis . | . . . Rewire . | . . . Trap . | . . . Miscellaneous . | . . . Route ------- -11/Scrapyard -10/Materials -10/Mines History --------- Turn | Location | Event 2 | -11/Scrapyard | Met Revision 17 19 | -11/Scrapyard | Discovered new exit (range 16) 110 | -11/Scrapyard | Entered Materials 110 | -10/Materials | Discovered new exit (range 15) 268 | -10/Materials | Repaired Assault Rifle 309 | -10/Materials | Build established: Mutant 318 | -10/Materials | Identified exit to Mines 320 | -10/Materials | Entered Mines 356 | -10/Mines | Received a Rocket Launcher from a helpful Derelict 462 | -10/Mines | Assembled infested the area 514 | -10/Mines | Core integrity fell below 50% 573 | -10/Mines | Core integrity fell below 20% 575 | -10/Mines | Lost 5 parts (2p1n2w) 593 | -10/Mines | Destroyed by as-90633 with Assembled Blade Last Messages --------------- 00545_ Kicked as-69005. 00547_ Kicked as-69005 out of the way. 00548_ Acquired 31 matter. 00554_ Kicked as-40510. 00564_ Dropped Imp. Heat Sink. 00564_ as-40510 destroyed. 00566_ Acquired 14 matter. 00576_ U-05 Engineer builds a Wall. 00580_ as-28076 sneak attacks. 00580_ Acquired Aluminum Leg. 00582_ Acquired 49 matter. 00584_ Acquired Aluminum Leg. 00585_ Acquired 12 matter. 00587_ Aluminum Leg destroyed. 00589_ as-28076 destroyed. 00590_ Signal Interpreter destroyed. 00590_ System corrupted by crushing effect (+4). 00590_ G-34 Mercenary destroyed. 00593_ System corrupted: Matter fused (-9). 00593_ Aluminum Leg destroyed. Map ----- +----------------------------------------------------+ | ?????????????????????????##############??????? | | ?????????????????????????##############??????? | | ????????################### ##??????? | | ????????################### """ """ ##??????? | | ########## """ """ ##??????? | | ########## ################ """ """ ##??????? | | ## = ################ """ """ ##??????? | | ##????????????## ##??????? | | ########????????????###### #T#####??????? | | #########????????????###### #######??????? | | ####??????????????????????## #########????? | | # ###???????????????????###### #########????? | | # ##????????????????????###### ##????? | | ##????????????????????## ! ###### ##????? | | # ##??????????????????#### ########## ##????? | | # ##??????????????????#### ######???????????? | | ##?????????????????### #####????????????? | | #????????????????#### ## ####???????????? | | ##???????????????### ###???????????? | | ##??????????????### a # # ##?? #??????? | | ??????????????### #% # ##??????? | | ???????????????## % ###??????? | | ????????????????### # # %# ##???????? | | ????????????????????## #* ### ???????? | | ????????????????????### # # ????????? | | ????????????????????### #@a # ### ??????? | | ????????????????????### #aa # #####? ?????? | | ?????????????????????#### # ###????? ??????? | | ????????????????????? # ###?????????????? | | ???????????????????????# ####??????????????? | | ???????????????????????# ##??????????????? | | ??????????????????????## #???????????????? | | ??????????????????????# #???????????????? | | ??????????????????????## #???????????????? | | ??????????????????????# #??????????????? | | ??????????????????????? = ##??????????????? | | ???????????????????????*%! ###??????????????? | | ??????????????????????? g ###??????????????? | | ??????????????????????? #???????????????? | | ??????????????????????? ????????????????? | | ??????????????????????? ?????????????????? | | ?????????????????????????????????????????????? | | ?????????????????????????????????????????????? | | ?????????????????????????????????????????????? | | ?????????????????????????????????????????????? | | ?????????????????????????????????????????????? | | ?????????????????????????????????????????????? | | ?????????????????????????????????????????????? | | ?????????????????????????????????????????????? | | ?????????????????????????????????????????????? | +----------------------------------------------------+ Best States ------------- Heat Dissipation 25 Energy Generation 10 Energy Capacity 250 Matter Stores 279 Matter Capacity 300 Sight Range 16 Terrain Scan Density 10 Evasion (%) 55 Item Schematics ----------------- None Robot Schematics ------------------ None Fabricated ------------ Nothing Repaired ---------- Assault Rifle | 29% | -10/Materials Studied --------- None Alien Tech Used ----------------- None Achievements -------------- DATA ERROR: Steam Global Achievement% For Emergencies Only Ghost 'Em I Have A Map? Organ Harvest You Again Challenges ------------ None Game ------ Seed MolecularThiefDetonator Manual? 0 Play Time 00:22:30 Cumulative 8.8 hours Start 2026.03.19 @ 19:50:40 End 2026.03.19 @ 20:17:50 Sessions 1 Manual Loads 0 Difficulty Rogue Special Mode None Game No. 10 Rogue 10 Adventurer 0 Explorer 0 Win Type - Total 0 Types 0/0/0/0/0/0/0/0/0/0 Lore% 5 Gallery% 13 Achievement% 9 Wizard Run 0 Options --------- Layout 0 ASCII 0 Keyboard 0 Movement Numpad Keybinds 0 Fullscreen 1 Font 18/SmallcapsGlow Map View 76x50 Zoom Use 0% Tactical HUD 1 Map Filters NONE Filters NONE Steam 1 RUN: 1d803991-9663-4725-93f6-f19a46999032